[Event "Romanian-ch Women 2022"]
[Site "Eforie Nord"]
[Date "2022.02.21"]
[Round "2.6"]
[White "Hoanca, Alexia-Ioana"]
[Black "Ionescu, Irina"]
[Result "1-0"]
[ECO "B07"]
[WhiteElo "1710"]
[BlackElo "2131"]
[Annotator "ChessBase"]
[PlyCount "77"]
[EventDate "2022.02.20"]
[EventType "swiss"]
[EventCountry "ROU"]
[SourceTitle "playchess.com"]
[Source "ChessBase"]
[SourceQuality "1"]
[TimeControl "40/5400+30:900+30"]

1. e4 {[%emt 0:00:02]} d6 {[%emt 0:00:38]} 2. d4 {[%emt 0:00:21]} Nf6 {[%emt 0:00:05]} 3. Nc3 {[%emt 0:00:09]} g6 {[%emt 0:00:15]} 4. h3 {[%emt 0:00:34]} Bg7 {[%emt 0:00:47]} 5. Be3 {[%emt 0:00:25]} c6 {[%emt 0:00:55]} 6. a4 {[%emt 0:00:08]} a5 {[%emt 0:07:07]} 7. g4 {[%emt 0:00:57]} Na6 {[%emt 0:01:48]} 8. Bg2 {[%emt 0:01:30]} Qc7 {[%emt 0:02:03]} 9. Nge2 {[%emt 0:00:40]} e5 {[%emt 0:01:04]} 10. O-O {[%emt 0:00:28]} Bd7 {[%emt 0:07:05]} 11. Qd2 {[%emt 0:04:05]} O-O-O {[%emt 0:04:15]} 12. d5 {[%emt 0:11:57]} Nc5 {[%emt 0:04:31]} 13. dxc6 {[%emt 0:01:39]} Bxc6 {[%emt 0:01:28]} 14. f3 {[%emt 0:15:28]} b6 {[%emt 0:07:28]} 15. Nd5 {[%emt 0:08:10]} Nxd5 {[%emt 0:10:29]} 16. exd5 {[%emt 0:00:10]} Bb7 {[%emt 0:00:23]} 17. b4 {[%emt 0:11:08]} axb4 {[%emt 0:00:47]} 18. Qxb4 {[%emt 0:00:31]} Ba6 {[%emt 0:21:14]} 19. a5 {[%emt 0:08:29]} b5 {[%emt 0:10:32]} 20. Ra3 {[%emt 0:14:27]} Kd7 {[%emt 0:02:08]} 21. f4 {[%emt 0:03:10]} e4 {[%emt 0:03:04]} 22. f5 {[%emt 0:01:08]} f6 {[%emt 0:01:26]} 23. Nd4 {[%emt 0:02:51]} Qb7 {[%emt 0:03:55]} 24. Ne6 {[%emt 0:01:49]} Nxe6 {[%emt 0:00:49]} 25. fxe6+ {[%emt 0:00:36]} Ke7 {[%emt 0:01:37]} 26. Bxe4 {[%emt 0:03:20]} Rc8 {[%emt 0:00:14]} 27. Bf4 {[%emt 0:01:34]} Rhd8 {[%emt 0:00:21]} 28. Rff3 {[%emt 0:01:44]} Rc4 {[%emt 0:01:14]} 29. Qe1 {[%emt 0:00:44]} b4 {[%emt 0:02:15]} 30. Rae3 {[%emt 0:01:50]} Qa7 {[%emt 0:02:15]} 31. Kg2 {[%emt 0:01:01]} Rdc8 {[%emt 0:00:01]} 32. Bd3 {[%emt 0:00:54]} Rc3 {[%emt 0:01:27]} 33. Bxd6+ {[%emt 0:00:53]} Kxd6 {[%emt 0:00:05]} 34. e7 {[%emt 0:00:07]} Bxd3 {[%emt 0:01:16]} 35. e8=Q {[%emt 0:00:36]} Rxe8 {[%emt 0:00:17]} 36. Rxe8 {[%emt 0:00:08]} Rxc2+ {[%emt 0:01:01]} 37. Kg3 {[%emt 0:00:26]} Re2 {[%emt 0:00:55]} 38. Qxb4+ {[%emt 0:00:32]} Kxd5 {[%emt 0:00:08]} 39. Rxd3+ {[%emt 0:00:15]} 1-0

[Event "Romanian-ch Women 2022"]
[Site "Eforie Nord"]
[Date "2022.02.21"]
[Round "2.7"]
[White "Czika, Stefania"]
[Black "Lehaci, Miruna-Daria"]
[Result "0-1"]
[ECO "E43"]
[WhiteElo "1259"]
[BlackElo "2125"]
[Annotator "ChessBase"]
[PlyCount "40"]
[EventDate "2022.02.20"]
[EventType "swiss"]
[EventCountry "ROU"]
[SourceTitle "playchess.com"]
[Source "ChessBase"]
[SourceQuality "1"]
[TimeControl "40/5400+30:900+30"]

1. d4 {[%emt 0:00:08]} e6 {[%emt 0:00:05]} 2. c4 {[%emt 0:00:14]} Nf6 {[%emt 0:00:05]} 3. Nc3 {[%emt 0:00:26]} Bb4 {[%emt 0:00:04]} 4. Nf3 {[%emt 0:01:03]} c5 {[%emt 0:00:28]} 5. e3 {[%emt 0:05:01]} O-O {[%emt 0:00:24]} 6. Bd3 {[%emt 0:00:55]} b6 {[%emt 0:01:23]} 7. O-O {[%emt 0:03:13]} Bb7 {[%emt 0:01:52]} 8. Bd2 {[%emt 0:09:54]} cxd4 {[%emt 0:08:07]} 9. exd4 {[%emt 0:01:41]} Be7 {[%emt 0:02:54]} 10. Qe2 {[%emt 0:07:03]} Na6 {[%emt 0:04:31]} 11. Ne4 {[%emt 0:07:51]} Nc7 {[%emt 0:04:22]} 12. Bg5 {[%emt 0:06:12]} Nce8 {[%emt 0:11:51]} 13. Ne5 {[%emt 0:11:06]} d6 {[%emt 0:07:52]} 14. Ng4 {[%emt 0:05:27]} Nxg4 {[%emt 0:09:50]} 15. Bxe7 {[%emt 0:22:04]} Qxe7 {[%emt 0:00:07]} 16. h3 {[%emt 0:02:03]} Ngf6 {[%emt 0:00:00]} 17. Rac1 {[%emt 0:04:18]} Nxe4 {[%emt 0:00:08]} 18. Bxe4 {[%emt 0:00:16]} Bxe4 {[%emt 0:00:04]} 19. Qxe4 {[%emt 0:00:13]} Nf6 {[%emt 0:00:04]} 20. Rfe1 {[%emt 0:02:12]} Nxe4 {[%emt 0:00:05]} 0-1

[Event "Romanian-ch Women 2022"]
[Site "Eforie Nord"]
[Date "2022.02.21"]
[Round "2.8"]
[White "Peptan, Corina-Isabela"]
[Black "Petculescu, Diana-Silvana"]
[Result "1-0"]
[ECO "E51"]
[WhiteElo "2384"]
[BlackElo "1402"]
[Annotator "ChessBase"]
[PlyCount "43"]
[EventDate "2022.02.20"]
[EventType "swiss"]
[EventCountry "ROU"]
[SourceTitle "playchess.com"]
[Source "ChessBase"]
[SourceQuality "1"]
[TimeControl "40/5400+30:900+30"]

1. d4 {[%emt 1:31:00]} Nf6 {[%emt 1:31:00]} 2. c4 {[%emt 0:00:30]} e6 {[%emt 0:00:30]} 3. Nf3 {[%emt 0:00:30]} b6 {[%emt 0:00:30]} 4. Nc3 {[%emt 0:00:30]} Bb4 {[%emt 0:00:30]} 5. Bd2 {[%emt 0:00:30]} O-O {[%emt 0:00:30]} 6. e3 {[%emt 0:00:30]} Bb7 {[%emt 0:00:30]} 7. Be2 {[%emt 0:00:30]} d5 {[%emt 0:00:30]} 8. a3 {[%emt 0:00:30]} Be7 {[%emt 0:00:30]} 9. cxd5 Nxd5 {[%emt 0:00:30]} 10. O-O {[%emt 0:01:00]} Nd7 {[%emt 0:00:30]} 11. Qc2 {[%emt 0:00:30]} c5 {[%emt 0:00:30]} 12. Rac1 {[%emt 0:00:30]} Rc8 {[%emt 0:00:30]} 13. Nxd5 {[%emt 0:00:30]} Bxd5 14. Ba6 {[%emt 0:00:30]} Rb8 {[%emt 0:01:00]} 15. e4 Bb7 {[%emt 0:00:30]} 16. Bxb7 {[%emt 0:01:00]} Rxb7 {[%emt 0:00:30]} 17. Bf4 {[%emt 0:00:30]} cxd4 {[%emt 0:00:30]} 18. Nxd4 {[%emt 0:00:30]} Nc5 {[%emt 0:00:30]} 19. Rfd1 {[%emt 0:00:30]} Qe8 {[%emt 0:00:30]} 20. b4 {[%emt 0:00:30]} Qa4 {[%emt 0:00:30]} 21. bxc5 {[%emt 0:00:30]} Qxa3 {[%emt 0:00:30]} 22. c6 {[%emt 0:00:30]} 1-0

[Event "Romanian-ch Women 2022"]
[Site "Eforie Nord"]
[Date "2022.02.21"]
[Round "2.9"]
[White "Trifoi, Mihaela-Ioana"]
[Black "Lolici, Iselin-Amanda"]
[Result "1-0"]
[ECO "B30"]
[WhiteElo "1893"]
[BlackElo "1907"]
[Annotator "ChessBase"]
[PlyCount "69"]
[EventDate "2022.02.20"]
[EventType "swiss"]
[EventCountry "ROU"]
[SourceTitle "playchess.com"]
[Source "ChessBase"]
[SourceQuality "1"]
[TimeControl "40/5400+30:900+30"]

1. e4 {[%emt 0:00:03]} c5 {[%emt 0:10:34]} 2. Nf3 {[%emt 0:00:14]} Nc6 {[%emt 0:00:23]} 3. Bb5 {[%emt 0:01:03]} Qb6 {[%emt 0:00:15]} 4. Ba4 {[%emt 0:07:25]} e6 {[%emt 0:00:38]} 5. c3 {[%emt 0:00:56]} Nge7 {[%emt 0:03:41]} 6. O-O {[%emt 0:03:18]} d5 {[%emt 0:09:26]} 7. e5 {[%emt 0:03:32]} d4 {[%emt 0:01:06]} 8. Na3 {[%emt 0:03:35]} Nf5 {[%emt 0:05:45]} 9. Bc2 {[%emt 0:02:48]} Be7 {[%emt 0:02:27]} 10. Be4 {[%emt 0:04:18]} O-O {[%emt 0:03:07]} 11. d3 {[%emt 0:00:22]} a6 {[%emt 0:08:51]} 12. Nc4 {[%emt 0:00:48]} Qc7 {[%emt 0:00:33]} 13. a4 {[%emt 0:00:21]} Na5 {[%emt 0:08:38]} 14. Nxa5 {[%emt 0:08:57]} Qxa5 {[%emt 0:00:15]} 15. Bd2 {[%emt 0:00:54]} Qb6 {[%emt 0:04:23]} 16. Ra2 {[%emt 0:06:26]} Bd7 {[%emt 0:02:02]} 17. g4 {[%emt 0:02:08]} Nh6 {[%emt 0:08:48]} 18. Ng5 {[%emt 0:00:41]} Bc6 {[%emt 0:05:57]} 19. Bxh7+ {[%emt 0:02:26]} Kh8 {[%emt 0:00:07]} 20. Be4 {[%emt 0:00:18]} Bxe4 {[%emt 0:04:49]} 21. Nxe4 {[%emt 0:00:28]} Qc7 {[%emt 0:03:55]} 22. f4 {[%emt 0:00:48]} Rad8 {[%emt 0:01:22]} 23. c4 {[%emt 0:04:47]} Rb8 {[%emt 0:05:43]} 24. Rf3 {[%emt 0:01:22]} Nxg4 {[%emt 0:04:28]} 25. Rh3+ {[%emt 0:00:07]} Nh6 {[%emt 0:00:05]} 26. Qh5 {[%emt 0:00:21]} f5 {[%emt 0:00:56]} 27. exf6 {[%emt 0:02:30]} Bxf6 {[%emt 0:00:45]} 28. f5 {[%emt 0:02:51]} Qf7 {[%emt 0:00:47]} 29. Bxh6 {[%emt 0:00:19]} Qxh5 {[%emt 0:00:20]} 30. Rxh5 {[%emt 0:00:16]} gxh6 {[%emt 0:01:01]} 31. Rxh6+ {[%emt 0:00:11]} Kg7 {[%emt 0:00:14]} 32. Rg6+ {[%emt 0:00:07]} Kf7 {[%emt 0:02:23]} 33. Rxf6+ {[%emt 0:00:34]} Kg7 {[%emt 0:00:42]} 34. Rxf8 {[%emt 0:00:25]} Kxf8 {[%emt 0:00:39]} 35. fxe6 {[%emt 0:00:05]} 1-0

[Event "Romanian-ch Women 2022"]
[Site "Eforie Nord"]
[Date "2022.02.21"]
[Round "2.10"]
[White "Criveanu, Maria"]
[Black "Panainte, Andreea-Bianca"]
[Result "0-1"]
[ECO "C02"]
[WhiteElo "1503"]
[BlackElo "1865"]
[Annotator "NA"]
[PlyCount "66"]
[EventDate "2022.02.20"]
[EventType "swiss"]
[EventCountry "ROU"]
[SourceTitle "playchess.com"]
[Source "ChessBase"]
[SourceQuality "1"]
[TimeControl "40/5400+30:900+30"]

{[%evp 8,62,0,4,32767,32767,32767,6,32767,32767,32767,32767,32767,32767,32767,32767,32767,32767,32767,32767,32767,32767,32767,-629,-516,-614,-481,-470,-472,32767,32767,-600,-639,-632,-657,-770,-816,32767,32767,32767,-675,-702,-684,32767,32767,-675,32767,32767,-806,-727,-875,-1043,-1187,-974,-1559,-902,-1272]} 1. e4 {[%emt 0:00:30]} e6 {[%emt 0:01:38]} 2. d4 {[%emt 0:00:00]} d5 {[%emt 0:00:06]} 3. e5 {[%emt 0:00:00]} c5 {[%emt 0:00:06]} 4. c3 {[%emt 0:00:00]} Nc6 {[%emt 0:00:15]} 5. Nf3 {[%emt 0:00:07]} Qb6 {[%emt 0:00:45]} 6. Be2 {[%emt 0:00:46]} Bd7 {[%emt 0:00:59]} 7. a3 {[%emt 0:01:42]} Nh6 {[%emt 0:01:58]} 8. Bxh6 {[%emt 0:02:32]} gxh6 {[%emt 0:02:35]} 9. Qd2 {[%emt 0:00:28]} Na5 {[%emt 0:01:46]} 10. dxc5 {[%emt 0:14:28]} Bxc5 {[%emt 0:01:58]} 11. b4 {[%emt 0:01:32]} Bxf2+ {[%emt 0:00:29]} 12. Kf1 {[%emt 0:00:12]} Nb3 {[%emt 0:01:25]} 13. Qb2 {[%emt 0:04:28]} Nxa1 {[%emt 0:00:32]} 14. Qxa1 {[%emt 0:00:14]} Be3 {[%emt 0:01:07]} 15. Nd4 {[%emt 0:02:55]} (15. c4 $142) 15... Rc8 {[%emt 0:01:05]} 16. Qb2 {[%emt 0:01:21]} Qc7 {[%emt 0:05:09]} 17. Nf3 {[%emt 0:04:34]} Bf4 {[%emt 0:00:12]} 18. c4 {[%emt 0:02:58]} dxc4 {[%emt 0:00:27]} 19. Qc3 {[%emt 0:01:28]} Bc6 {[%emt 0:04:55]} 20. Nbd2 {[%emt 0:02:35]} b5 {[%emt 0:02:12]} 21. g3 {[%emt 0:02:18]} Bxd2 {[%emt 0:06:12]} 22. Qxd2 {[%emt 0:00:17]} Bxf3 {[%emt 0:00:11]} 23. Bxf3 {[%emt 0:00:12]} Qxe5 {[%emt 0:00:21]} 24. Kg2 {[%emt 0:00:59]} O-O {[%emt 0:07:34]} 25. Re1 {[%emt 0:03:00]} Qg5 {[%emt 0:00:13]} 26. Qc3 {[%emt 0:03:39]} Rfd8 {[%emt 0:00:16]} 27. Re3 {[%emt 0:03:41]} Rd6 {[%emt 0:01:50]} 28. h4 {[%emt 0:00:48]} Qg7 {[%emt 0:00:37]} 29. Qc1 {[%emt 0:00:29]} Rcd8 {[%emt 0:00:13]} 30. Re4 {[%emt 0:01:36]} Rd2+ {[%emt 0:02:01]} ({And not} 30... Rd3 31. Rg4 Rd2+ 32. Kh3 $11) 31. Kh3 {[%emt 0:01:28]} Qb2 $19 {[%emt 0:01:19]} ({Weaker is} 31... R8d3 32. Rg4 $17) 32. Qe1 {[%emt 0:02:25]} Rh2+ {[%emt 0:00:13]} 33. Kg4 {[%emt 0:00:16]} f5+ {[%emt 0:00:49]} 0-1

[Event "Romanian-ch Women 2022"]
[Site "Eforie Nord"]
[Date "2022.02.21"]
[Round "2.11"]
[White "Cosman, Andreea-Marioara"]
[Black "Maria, Lia-Alexandra"]
[Result "1-0"]
[ECO "D11"]
[WhiteElo "2127"]
[BlackElo "1832"]
[Annotator "ChessBase"]
[PlyCount "97"]
[EventDate "2022.02.20"]
[EventType "swiss"]
[EventCountry "ROU"]
[SourceTitle "playchess.com"]
[Source "ChessBase"]
[SourceQuality "1"]
[TimeControl "40/5400+30:900+30"]

1. d4 {[%emt 0:00:04]} d5 {[%emt 0:00:05]} 2. Nf3 {[%emt 0:00:45]} Nf6 {[%emt 0:00:41]} 3. g3 {[%emt 0:00:25]} Bf5 {[%emt 0:07:50]} 4. Bg2 {[%emt 0:00:21]} e6 {[%emt 0:00:36]} 5. c4 {[%emt 0:00:30]} c6 {[%emt 0:01:00]} 6. O-O {[%emt 0:00:16]} Nbd7 {[%emt 0:01:06]} 7. b3 {[%emt 0:00:13]} Bd6 {[%emt 0:00:54]} 8. Bb2 {[%emt 0:00:31]} O-O {[%emt 0:00:25]} 9. Nc3 {[%emt 0:00:13]} Re8 {[%emt 0:01:01]} 10. Nh4 {[%emt 0:14:02]} Bg4 {[%emt 0:01:08]} 11. Qc2 {[%emt 0:01:48]} e5 {[%emt 0:07:55]} 12. dxe5 {[%emt 0:06:16]} Bxe5 {[%emt 0:00:54]} 13. cxd5 {[%emt 0:10:48]} cxd5 {[%emt 0:04:32]} 14. Nf3 {[%emt 0:08:38]} Bd6 {[%emt 0:08:15]} 15. Rad1 {[%emt 0:01:43]} Rc8 {[%emt 0:01:14]} 16. Qb1 {[%emt 0:05:43]} Qa5 {[%emt 0:02:49]} 17. Qa1 {[%emt 0:12:05]} Nb6 {[%emt 0:06:08]} 18. h3 {[%emt 0:09:44]} Bh5 {[%emt 0:01:03]} 19. Nd4 {[%emt 0:00:48]} Bb4 {[%emt 0:01:45]} 20. Rc1 {[%emt 0:00:57]} Nbd7 {[%emt 0:05:44]} 21. a3 {[%emt 0:03:45]} Bd6 {[%emt 0:01:00]} 22. b4 {[%emt 0:03:11]} Qb6 {[%emt 0:01:10]} 23. Nxd5 {[%emt 0:02:11]} Nxd5 {[%emt 0:01:11]} 24. Rxc8 {[%emt 0:01:33]} Rxc8 {[%emt 0:00:09]} 25. Bxd5 {[%emt 0:00:04]} Nf6 {[%emt 0:00:35]} 26. Bg2 {[%emt 0:01:40]} Re8 {[%emt 0:00:33]} 27. e3 {[%emt 0:02:23]} Bg6 {[%emt 0:00:33]} 28. Nf3 {[%emt 0:02:30]} Ne4 {[%emt 0:04:26]} 29. Bd4 {[%emt 0:01:02]} Qd8 {[%emt 0:03:25]} 30. Bxg7 {[%emt 0:00:50]} f6 {[%emt 0:00:34]} 31. Bh6 {[%emt 0:00:14]} a5 {[%emt 0:01:29]} 32. Qd4 {[%emt 0:03:12]} axb4 {[%emt 0:00:37]} 33. axb4 {[%emt 0:01:05]} Qe7 {[%emt 0:00:14]} 34. Nh4 {[%emt 0:01:41]} Bxb4 {[%emt 0:01:27]} 35. Nxg6 {[%emt 0:00:56]} hxg6 {[%emt 0:00:08]} 36. Bxe4 {[%emt 0:00:28]} Qxe4 {[%emt 0:01:20]} 37. Qxf6 {[%emt 0:00:09]} Bf8 {[%emt 0:00:06]} 38. Bf4 {[%emt 0:01:51]} b5 {[%emt 0:01:01]} 39. Qd4 {[%emt 0:02:19]} Qe6 {[%emt 0:00:48]} 40. g4 {[%emt 0:00:00]} b4 {[%emt 0:00:00]} 41. Rb1 {[%emt 0:02:43]} Ra8 {[%emt 0:01:47]} 42. Qe5 {[%emt 0:02:13]} Qa2 {[%emt 0:00:43]} 43. Qb2 {[%emt 0:03:07]} Qa5 {[%emt 0:00:54]} 44. Qb3+ {[%emt 0:03:18]} Kg7 {[%emt 0:00:21]} 45. Qe6 {[%emt 0:01:28]} Qa7 {[%emt 0:01:30]} 46. Be5+ {[%emt 0:00:13]} Kh6 {[%emt 0:00:26]} 47. g5+ {[%emt 0:00:36]} Kxg5 {[%emt 0:00:35]} 48. Qg4+ {[%emt 0:00:08]} Kh6 {[%emt 0:00:07]} 49. Qh4# {[%emt 0:09:20]} 1-0

[Event "Romanian-ch Women 2022"]
[Site "Eforie Nord"]
[Date "2022.02.21"]
[Round "2.12"]
[White "Coman, Emilia-Florentina"]
[Black "Bucur, Denisa-Andreea"]
[Result "1/2-1/2"]
[ECO "A64"]
[WhiteElo "1776"]
[BlackElo "2023"]
[Annotator "NA"]
[PlyCount "94"]
[EventDate "2022.02.20"]
[EventType "swiss"]
[EventCountry "ROU"]
[SourceTitle "playchess.com"]
[Source "ChessBase"]
[SourceQuality "1"]
[TimeControl "40/5400+30:900+30"]

1. d4 {[%emt 0:02:56]} Nf6 {[%emt 0:00:11]} 2. c4 {[%emt 0:00:17]} e6 {[%emt 0:00:10]} 3. g3 {[%emt 0:02:53]} c5 {[%emt 0:01:07]} 4. d5 {[%emt 0:01:07]} exd5 {[%emt 0:00:31]} 5. cxd5 {[%emt 0:00:07]} d6 {[%emt 0:00:14]} 6. Nc3 {[%emt 0:04:06]} g6 {[%emt 0:00:43]} 7. Bg2 {[%emt 0:03:23]} Bg7 {[%emt 0:00:41]} 8. Nf3 {[%emt 0:07:08]} O-O {[%emt 0:00:42]} 9. O-O {[%emt 0:01:12]} Re8 {[%emt 0:00:55]} 10. Nd2 {[%emt 0:04:04]} a6 {[%emt 0:00:42]} 11. a4 {[%emt 0:00:05]} Nbd7 $1 {[%emt 0:00:13]} 12. e4 {[%emt 0:10:10]} Rb8 {[%emt 0:02:14]} 13. a5 {[%emt 0:04:19]} Qc7 {[%emt 0:04:06]} 14. f4 {[%emt 0:07:20]} (14. Nc4 $14) 14... b5 {[%emt 0:03:37]} 15. axb6 $1 {[%emt 0:02:34]} Nxb6 {[%emt 0:03:28]} 16. Re1 {[%emt 0:09:46]} (16. h3 $11) 16... c4 {[%emt 0:12:17]} 17. Nf3 {[%emt 0:02:32]} Nfd7 {[%emt 0:07:30]} (17... Ng4 $15 18. Kf1 Nd7) 18. e5 {[%emt 0:08:55]} (18. Nd4 $1 $11) 18... Nc5 $11 {[%emt 0:04:40]} 19. exd6 {[%emt 0:03:32]} Rxe1+ {[%emt 0:00:09]} 20. Qxe1 {[%emt 0:00:08]} Qxd6 {[%emt 0:00:24]} 21. Qe8+ {[%emt 0:02:52]} Qf8 {[%emt 0:10:59]} 22. Qxf8+ {[%emt 0:06:58]} Kxf8 {[%emt 0:06:26]} 23. Ne5 {[%emt 0:06:59]} Nb3 {[%emt 0:06:38]} 24. Nc6 {[%emt 0:01:18]} Rb7 {[%emt 0:04:20]} 25. Rb1 {[%emt 0:04:07]} Bf5 {[%emt 0:00:52]} 26. Be4 {[%emt 0:01:43]} Bxe4 {[%emt 0:00:55]} 27. Nxe4 {[%emt 0:00:05]} Nxd5 {[%emt 0:00:39]} 28. Ne5 {[%emt 0:00:23]} Re7 {[%emt 0:09:30]} 29. Nc3 {[%emt 0:03:24]} Nxc3 {[%emt 0:03:40]} 30. bxc3 {[%emt 0:00:08]} Nxc1 {[%emt 0:00:04]} 31. Rxc1 {[%emt 0:00:05]} Bxe5 {[%emt 0:00:06]} 32. fxe5 {[%emt 0:00:04]} Rxe5 {[%emt 0:00:08]} 33. Ra1 {[%emt 0:00:37]} a5 {[%emt 0:04:16]} 34. Ra4 {[%emt 0:00:43]} Rc5 {[%emt 0:00:06]} 35. Kf2 {[%emt 0:00:12]} Ke7 {[%emt 0:00:47]} 36. Ke3 {[%emt 0:00:30]} Kd6 {[%emt 0:02:33]} 37. Kd4 {[%emt 0:00:43]} h5 {[%emt 0:01:07]} 38. Ra1 {[%emt 0:01:25]} h4 {[%emt 0:06:58]} 39. Ra2 {[%emt 0:00:36]} hxg3 {[%emt 0:01:02]} 40. hxg3 {[%emt 0:00:00]} Kc6 {[%emt 0:00:00]} 41. Rf2 {[%emt 0:02:31]} Rf5 {[%emt 0:05:17]} 42. Ra2 {[%emt 0:12:03]} Rg5 {[%emt 0:01:15]} 43. Kxc4 {[%emt 0:01:37]} Rg4+ {[%emt 0:00:05]} 44. Kb3 {[%emt 0:00:52]} a4+ {[%emt 0:00:48]} 45. Rxa4 {[%emt 0:00:37]} Rxg3 {[%emt 0:08:23]} 46. Ra6+ {[%emt 0:00:09]} Kd5 {[%emt 0:00:17]} 47. Rf6 {[%emt 0:00:08]} g5 {[%emt 0:03:28]} 1/2-1/2

[Event "Romanian-ch Women 2022"]
[Site "Eforie Nord"]
[Date "2022.02.22"]
[Round "3.7"]
[White "Ionescu, Irina"]
[Black "Batagan, Ilinca-Petra"]
[Result "1-0"]
[ECO "B20"]
[WhiteElo "2131"]
[BlackElo "1881"]
[Annotator "NA RC"]
[PlyCount "95"]
[EventDate "2022.02.20"]
[EventType "swiss"]
[EventCountry "ROU"]
[SourceTitle "playchess.com"]
[Source "ChessBase"]
[SourceQuality "1"]
[TimeControl "40/5400+30:900+30"]

1. e4 {[%emt 0:00:06]} c5 {[%emt 0:00:15]} 2. g3 {[%emt 0:00:49]} d6 {[%emt 0:01:09]} 3. Bg2 {[%emt 0:00:16]} Nf6 {[%emt 0:00:26]} 4. d3 {[%emt 0:00:31]} Nc6 {[%emt 0:01:06]} 5. c3 {[%emt 0:03:09]} e6 {[%emt 0:02:43]} 6. f4 {[%emt 0:00:25]} Be7 {[%emt 0:01:24]} 7. Nf3 {[%emt 0:00:09]} a6 {[%emt 0:01:11]} 8. O-O {[%emt 0:00:25]} O-O {[%emt 0:00:38]} 9. Kh1 {[%emt 0:00:22]} Rb8 {[%emt 0:03:31]} 10. h3 {[%emt 0:05:38]} b5 {[%emt 0:03:19]} 11. g4 {[%emt 0:01:02]} Bd7 {[%emt 0:06:52]} 12. f5 {[%emt 0:02:44]} (12. Be3 $11) 12... Ne8 {[%emt 0:12:39]} (12... b4 $15) 13. Nbd2 {[%emt 0:05:59]} d5 {[%emt 0:03:33]} (13... Qc7 $11) 14. Qe1 {[%emt 0:08:20]} (14. Nb3 $142) 14... d4 {[%emt 0:04:57]} (14... dxe4 $11 15. dxe4 Qc7) 15. cxd4 {[%emt 0:10:42]} cxd4 {[%emt 0:02:40]} 16. Nb3 $1 {[%emt 0:00:34]} Qb6 {[%emt 0:04:09]} 17. Bf4 {[%emt 0:01:51]} Rc8 {[%emt 0:02:40]} 18. Qf2 {[%emt 0:04:51]} f6 {[%emt 0:08:11]} (18... exf5 $14 19. gxf5 Nf6) 19. fxe6 {[%emt 0:01:38]} ({Don't play} 19. Nbxd4 Bc5 $16) 19... Bxe6 {[%emt 0:00:04]} 20. Nfxd4 {[%emt 0:00:39]} Nxd4 {[%emt 0:04:04]} 21. Qxd4 {[%emt 0:00:42]} ({Much less strong is} 21. Nxd4 Bc5 22. Be3 Rd8 23. Nxe6 Bxe3 $14) 21... Qxd4 {[%emt 0:00:54]} 22. Nxd4 {[%emt 0:00:07]} Bf7 {[%emt 0:00:07]} 23. Rac1 {[%emt 0:04:27]} Rxc1 {[%emt 0:06:18]} 24. Rxc1 {[%emt 0:00:07]} g5 {[%emt 0:01:15]} 25. Bg3 {[%emt 0:02:26]} Bd6 {[%emt 0:01:05]} 26. Bxd6 {[%emt 0:01:40]} Nxd6 {[%emt 0:00:02]} 27. b3 {[%emt 0:04:26]} Rc8 {[%emt 0:02:51]} 28. Rc6 {[%emt 0:05:21]} Rxc6 {[%emt 0:01:57]} 29. Nxc6 {[%emt 0:00:07]} Kf8 {[%emt 0:00:31]} 30. Kg1 {[%emt 0:00:09]} Be8 {[%emt 0:02:25]} 31. Nb4 {[%emt 0:01:25]} a5 {[%emt 0:00:23]} 32. Nd5 {[%emt 0:00:04]} Kf7 {[%emt 0:00:42]} 33. Kf2 {[%emt 0:00:28]} b4 {[%emt 0:03:05]} 34. Ke3 {[%emt 0:00:45]} Nb5 {[%emt 0:00:16]} 35. d4 {[%emt 0:01:07]} Bc6 {[%emt 0:01:21]} (35... h6 {is a better defense.} 36. Bf1 Kg7) 36. Nxf6 {[%emt 0:02:20]} Kxf6 {[%emt 0:01:15]} 37. e5+ {[%emt 0:00:10]} Ke6 {[%emt 0:00:28]} 38. Bxc6 {[%emt 0:00:06]} Nc3 {[%emt 0:00:07]} 39. Be4 {[%emt 0:03:18]} h6 {[%emt 0:03:11]} 40. Kd3 {[%emt 0:00:00]} Nxa2 {[%emt 0:00:00]} 41. Kc4 {[%emt 0:02:06]} Nc3 {[%emt 0:01:55]} 42. Bf5+ {[%emt 0:00:15]} Ke7 {[%emt 0:00:08]} 43. d5 {[%emt 0:00:17]} Ne2 {[%emt 0:01:47]} 44. d6+ {[%emt 0:00:34]} Kd8 {[%emt 0:00:06]} 45. e6 {[%emt 0:00:20]} Nf4 {[%emt 0:00:06]} 46. Kb5 {[%emt 0:01:18]} Nxh3 {[%emt 0:00:23]} 47. e7+ {[%emt 0:00:13]} Ke8 {[%emt 0:00:17]} 48. Bg6+ {[%emt 0:00:22]} 1-0

[Event "Romanian-ch Women 2022"]
[Site "Eforie Nord"]
[Date "2022.02.22"]
[Round "3.10"]
[White "Obada, Ema"]
[Black "Czika, Stefania"]
[Result "1-0"]
[ECO "B01"]
[WhiteElo "2010"]
[BlackElo "1259"]
[Annotator "NA"]
[PlyCount "49"]
[EventDate "2022.02.20"]
[EventType "swiss"]
[EventCountry "ROU"]
[SourceTitle "playchess.com"]
[Source "ChessBase"]
[SourceQuality "1"]
[TimeControl "40/5400+30:900+30"]

1. e4 {[%emt 0:00:03]} d5 {[%emt 0:26:37]} 2. exd5 {[%emt 0:00:08]} Qxd5 {[%emt 0:00:05]} 3. Nc3 {[%emt 0:00:06]} Qd6 {[%emt 0:00:18]} 4. d4 {[%emt 0:00:20]} Nf6 {[%emt 0:00:12]} 5. Bc4 {[%emt 0:01:17]} c6 {[%emt 0:02:58]} 6. Nf3 {[%emt 0:01:39]} b5 {[%emt 0:01:48]} 7. Bb3 {[%emt 0:03:16]} Bg4 {[%emt 0:01:48]} 8. Be3 {[%emt 0:04:04]} (8. h3 $16 Bh5 9. O-O) 8... e6 {[%emt 0:02:46]} (8... a5 $11) 9. h3 {[%emt 0:01:44]} Bf5 {[%emt 0:05:52]} (9... Bh5 $14 {might be stronger.}) 10. Ne5 {[%emt 0:01:43]} Nbd7 {[%emt 0:01:58]} (10... a5 $1 $14) 11. Qf3 {[%emt 0:02:52]} Nd5 {[%emt 0:09:35]} 12. Nxc6 {[%emt 0:09:15]} Qxc6 {[%emt 0:18:59]} 13. Bxd5 {[%emt 0:01:45]} exd5 {[%emt 0:00:43]} 14. Qxf5 {[%emt 0:01:17]} Bb4 {[%emt 0:01:20]} 15. Bd2 {[%emt 0:02:16]} Bxc3 {[%emt 0:03:07]} 16. Bxc3 {[%emt 0:00:12]} ({Much worse is} 16. bxc3 O-O $11) 16... O-O {[%emt 0:00:37]} 17. O-O {[%emt 0:00:40]} Nf6 {[%emt 0:02:04]} 18. f3 {[%emt 0:04:03]} Qc4 $16 {[%emt 0:05:55]} 19. Rfd1 {[%emt 0:17:53]} Rac8 {[%emt 0:04:57]} 20. a3 {[%emt 0:01:51]} Rfe8 {[%emt 0:02:09]} 21. Re1 {[%emt 0:11:06]} h6 {[%emt 0:04:12]} 22. Re5 {[%emt 0:01:35]} Rxe5 {[%emt 0:02:54]} 23. dxe5 {[%emt 0:00:40]} Qc5+ {[%emt 0:00:12]} 24. Kh1 {[%emt 0:00:13]} d4 {[%emt 0:00:27]} 25. Bb4 {[%emt 0:02:23]} 1-0